[Event "The Kvibergspelen 2023"]
[Site "Kviberg Park Hotel & Conference, Krutvagen 2, Gothenburg, Sweden"]
[Date "2023.09.15"]
[Round "4.17"]
[White "Frisk, Ellinor"]
[Black "Schriever-Abeln, Marius"]
[Result "1/2-1/2"]
[TimeControl "15 minutes + 5 seconds per move from move one (Round 1 - 4) / 90 minutes + 30 seconds per move from move one (Round 5 - 8)"]
[WhiteTitle "WIM"]
[WhiteFideId "1708481"]
[BlackFideId "1752650"]
[WhiteElo "2166"]
[BlackElo "1936"]

1. c4 {[%clk 00:15:08]} {[%emt 00:00:01]} e6 {[%clk 00:15:07]} {[%emt
00:00:04]} 2. g3 {[%clk 00:15:04]} {[%emt 00:00:08]} Nf6 {[%clk 00:15:09]}
{[%emt 00:00:05]} 3. Bg2 {[%clk 00:15:07]} {[%emt 00:00:01]} d5 {[%clk
00:15:09]} {[%emt 00:00:04]} 4. Nf3 {[%clk 00:14:54]} {[%emt 00:00:19]} Be7
{[%clk 00:14:28]} {[%emt 00:00:46]} 5. O-O {[%clk 00:14:49]} {[%emt 00:00:11]}
O-O {[%clk 00:14:25]} {[%emt 00:00:07]} 6. d4 {[%clk 00:14:26]} {[%emt
00:00:29]} dxc4 {[%clk 00:14:12]} {[%emt 00:00:17]} 7. Qa4 {[%clk 00:14:22]}
{[%emt 00:00:09]} a6 {[%clk 00:13:45]} {[%emt 00:00:32]} 8. Qxc4 {[%clk
00:14:22]} {[%emt 00:00:05]} b5 {[%clk 00:13:20]} {[%emt 00:00:30]} 9. Qc2
{[%clk 00:14:23]} {[%emt 00:00:04]} Bb7 {[%clk 00:13:09]} {[%emt 00:00:16]} 10.
Bd2 {[%clk 00:14:27]} {[%emt 00:00:01]} Nbd7 {[%clk 00:12:53]} {[%emt
00:00:21]} 11. Ba5 {[%clk 00:14:25]} {[%emt 00:00:06]} Bd6 {[%clk 00:12:16]}
{[%emt 00:00:43]} 12. Nbd2 {[%clk 00:11:50]} {[%emt 00:02:40]} Rc8 {[%clk
00:11:49]} {[%emt 00:00:32]} 13. a3 {[%clk 00:10:10]} {[%emt 00:01:45]} Qe7
{[%clk 00:11:12]} {[%emt 00:00:43]} 14. b4 {[%clk 00:10:13]} e5 {[%clk
00:07:44]} {[%emt 00:03:33]} 15. dxe5 {[%clk 00:09:50]} {[%emt 00:00:29]} Nxe5
{[%clk 00:07:43]} {[%emt 00:00:05]} 16. Nxe5 {[%clk 00:09:52]} {[%emt
00:00:03]} Bxg2 {[%clk 00:07:45]} {[%emt 00:00:03]} 17. Kxg2 {[%clk 00:09:26]}
{[%emt 00:00:31]} Bxe5 {[%clk 00:07:10]} {[%emt 00:00:40]} 18. Rac1 {[%clk
00:09:16]} {[%emt 00:00:15]} Rfd8 {[%clk 00:06:15]} {[%emt 00:01:00]} 19. Nb3
{[%clk 00:08:43]} {[%emt 00:00:37]} Bd6 {[%clk 00:05:22]} {[%emt 00:00:58]} 20.
Rfd1 {[%clk 00:08:19]} {[%emt 00:00:30]} Re8 {[%clk 00:05:14]} {[%emt
00:00:13]} 21. e3 {[%clk 00:08:00]} {[%emt 00:00:23]} Ne4 {[%clk 00:04:37]}
{[%emt 00:00:42]} 22. f3 {[%clk 00:06:28]} {[%emt 00:01:37]} Nf6 {[%clk
00:04:22]} {[%emt 00:00:20]} 23. e4 {[%clk 00:06:21]} {[%emt 00:00:13]} h5
{[%clk 00:03:37]} {[%emt 00:00:50]} 24. Nd4 {[%clk 00:05:47]} {[%emt 00:00:39]}
g6 {[%clk 00:03:11]} {[%emt 00:00:31]} 25. Nc6 {[%clk 00:05:27]} {[%emt
00:00:24]} Qe6 {[%clk 00:02:35]} {[%emt 00:00:41]} 26. Nd4 {[%clk 00:05:29]}
{[%emt 00:00:03]} Qe7 {[%clk 00:02:38]} {[%emt 00:00:03]} 27. Qc6 {[%clk
00:04:54]} {[%emt 00:00:40]} h4 {[%clk 00:01:49]} {[%emt 00:00:54]} 28. Qc2
{[%clk 00:03:44]} {[%emt 00:01:14]} hxg3 {[%clk 00:01:34]} {[%emt 00:00:20]} 29.
hxg3 {[%clk 00:03:48]} {[%emt 00:00:02]} Nh5 {[%clk 00:01:13]} {[%emt
00:00:27]} 30. Ne2 {[%clk 00:03:43]} {[%emt 00:00:09]} Qe5 {[%clk 00:01:06]}
{[%emt 00:00:12]} 31. Qc3 {[%clk 00:03:07]} {[%emt 00:00:41]} Qg5 {[%clk
00:00:47]} {[%emt 00:00:23]} 32. Qe1 {[%clk 00:01:17]} {[%emt 00:01:56]} f5
{[%clk 00:00:39]} {[%emt 00:00:13]} 33. Rd5 {[%clk 00:01:17]} {[%emt 00:00:04]}
Qe7 {[%clk 00:00:29]} {[%emt 00:00:16]} 34. Qd2 {[%clk 00:00:24]} {[%emt
00:00:59]} fxe4 {[%clk 00:00:24]} {[%emt 00:00:09]} 35. f4 {[%clk 00:00:28]}
{[%emt 00:00:01]} e3 {[%clk 00:00:24]} {[%emt 00:00:05]} 36. Qd4 {[%clk
00:00:31]} {[%emt 00:00:03]} Qg7 {[%clk 00:00:12]} {[%emt 00:00:16]} 37. Qxg7+
{[%clk 00:00:32]} {[%emt 00:00:04]} Nxg7 {[%clk 00:00:12]} {[%emt 00:00:06]} 38.
Kf3 {[%clk 00:00:31]} {[%emt 00:00:08]} Kf7 {[%clk 00:00:11]} {[%emt 00:00:03]}
39. Rd3 {[%clk 00:00:29]} {[%emt 00:00:08]} Nf5 {[%clk 00:00:08]} {[%emt
00:00:07]} 40. g4 {[%clk 00:00:25]} {[%emt 00:00:09]} Ng7 {[%clk 00:00:09]}
{[%emt 00:00:04]} 41. Rxe3 {[%clk 00:00:26]} {[%emt 00:00:02]} Rxe3+ {[%clk
00:00:12]} 42. Kxe3 {[%clk 00:00:31]} Re8+ {[%clk 00:00:15]} {[%emt 00:00:03]}
43. Kf3 {[%clk 00:00:34]} Re7 {[%clk 00:00:17]} {[%emt 00:00:03]} 44. Nd4
{[%clk 00:00:35]} {[%emt 00:00:11]} Ne6 {[%clk 00:00:17]} {[%emt 00:00:02]} 45.
Nc6 {[%clk 00:00:35]} {[%emt 00:00:03]} Rd7 {[%clk 00:00:19]} {[%emt 00:00:13]}
46. Nb8 {[%clk 00:00:37]} Rd8 {[%clk 00:00:20]} {[%emt 00:00:02]} 47. Nxa6
{[%clk 00:00:38]} {[%emt 00:00:02]} Bxf4 {[%clk 00:00:23]} {[%emt 00:00:13]} 48.
Bxc7 {[%clk 00:00:22]} {[%emt 00:00:31]} Bxc1 {[%clk 00:00:25]} {[%emt
00:00:03]} 49. Bxd8 Nxd8 {[%clk 00:00:29]} 50. Nc7 {[%clk 00:00:29]} Bxa3
{[%clk 00:00:31]} {[%emt 00:00:02]} 51. Nxb5 {[%clk 00:00:33]} Bxb4 {[%clk
00:00:35]} 52. Nd4 {[%clk 00:00:35]} {[%emt 00:00:07]} Kf6 {[%clk 00:00:35]}
{[%emt 00:00:03]} 53. Ne2 {[%clk 00:00:36]} {[%emt 00:00:03]} Ne6 {[%clk
00:00:37]} {[%emt 00:00:09]} 54. Ng3 {[%clk 00:00:40]} Ng5+ {[%emt 00:00:11]}
55. Ke2 {[%clk 00:00:41]} Ke5 {[%clk 00:00:38]} {[%emt 00:00:11]} 56. Kf2
{[%clk 00:00:42]} {[%emt 00:00:03]} Kf4 {[%clk 00:00:36]} {[%emt 00:00:13]} 57.
Nh5+ {[%clk 00:00:41]} {[%emt 00:00:02]} Kxg4 {[%clk 00:00:30]} {[%emt
00:00:13]} 58. Nf6+ {[%clk 00:00:43]} Kf5 {[%clk 00:00:31]} 59. Nd5 {[%clk
00:00:43]} {[%emt 00:00:02]} Bc5+ {[%clk 00:00:35]} 60. Kg3 {[%clk 00:00:46]}
{[%emt 00:00:09]} Ne4+ {[%clk 00:00:36]} {[%emt 00:00:01]} 61. Kf3 {[%clk
00:00:49]} g5 {[%clk 00:00:34]} {[%emt 00:00:02]} 62. Kg2 {[%clk 00:00:43]}
{[%emt 00:00:08]} g4 {[%clk 00:00:34]} {[%emt 00:00:01]} 63. Kf1 {[%clk
00:00:42]} {[%emt 00:00:02]} Ke5 {[%clk 00:00:34]} {[%emt 00:00:06]} 64. Nc7
{[%clk 00:00:37]} {[%emt 00:00:04]} Bb6 {[%clk 00:00:23]} {[%emt 00:00:14]} 65.
Nb5 {[%clk 00:00:38]} {[%emt 00:00:10]} Kf4 {[%clk 00:00:23]} {[%emt 00:00:01]}
66. Kg2 {[%clk 00:00:42]} g3 {[%clk 00:00:23]} {[%emt 00:00:01]} 67. Na3 {[%clk
00:00:43]} {[%emt 00:00:01]} Nd6 {[%clk 00:00:18]} {[%emt 00:00:02]} 68. Nc2
{[%clk 00:00:45]} {[%emt 00:00:09]} Nf5 {[%clk 00:00:19]} 69. Ne1 {[%clk
00:00:45]} Ne3+ {[%clk 00:00:22]} 70. Kh3 {[%clk 00:00:48]} Ba5 {[%clk
00:00:21]} {[%emt 00:00:01]} 71. Nd3+ {[%clk 00:00:49]} Kf3 {[%clk 00:00:17]}
{[%emt 00:00:06]} 72. Ne5+ {[%clk 00:00:52]} {[%emt 00:00:03]} Kf2 {[%clk
00:00:14]} {[%emt 00:00:08]} 73. Nd3+ {[%clk 00:00:52]} {[%emt 00:00:06]} Kf3
{[%clk 00:00:13]} {[%emt 00:00:05]} 74. Ne5+ {[%clk 00:00:56]} Ke4 {[%clk
00:00:17]} {[%emt 00:00:02]} 75. Kxg3 {[%clk 00:00:57]} {[%emt 00:00:05]} Kxe5
{[%clk 00:00:21]} 76. Kf3 {[%clk 00:01:01]} {[%emt 00:00:01]} Kd4 {[%clk
00:00:24]} {[%emt 00:00:01]} 77. Kf4 {[%clk 00:01:05]} {[%emt 00:00:02]} Bc7
{[%clk 00:00:26]} {[%emt 00:00:04]} 78. Kf3 {[%clk 00:01:07]} {[%emt 00:00:03]}
Kd3 {[%clk 00:00:27]} {[%emt 00:00:04]} 79. Kf2 {[%clk 00:01:09]} {[%emt
00:00:02]} Bf4 {[%clk 00:00:29]} {[%emt 00:00:04]} 80. Kf3 {[%clk 00:01:13]}
{[%emt 00:00:01]} Bd6 {[%clk 00:00:31]} {[%emt 00:00:02]} 81. Kf2 {[%clk
00:01:17]} {[%emt 00:00:02]} Ke4 {[%clk 00:00:34]} {[%emt 00:00:02]} 82. Kg1
{[%clk 00:01:18]} {[%emt 00:00:04]} Kf3 {[%clk 00:00:32]} {[%emt 00:00:06]} 83.
Kh1 {[%clk 00:01:20]} {[%emt 00:00:02]} Ng4 {[%clk 00:00:32]} {[%emt 00:00:05]}
84. Kg1 {[%clk 00:01:25]} {[%emt 00:00:01]} Nf2 {[%clk 00:00:32]} {[%emt
00:00:04]} 85. Kf1 {[%clk 00:01:29]} Bh2 {[%clk 00:00:31]} {[%emt 00:00:07]} 86.
Ke1 {[%clk 00:01:33]} Ne4 {[%clk 00:00:13]} {[%emt 00:00:23]} 87. Kd1 {[%clk
00:01:37]} Ke3 {[%clk 00:00:15]} {[%emt 00:00:03]} 88. Kc2 {[%clk 00:01:42]}
{[%emt 00:00:01]} Bd6 {[%clk 00:00:17]} {[%emt 00:00:04]} 89. Kb3 {[%clk
00:01:44]} {[%emt 00:00:03]} Kd3 {[%clk 00:00:08]} {[%emt 00:00:13]} 90. Ka4
{[%clk 00:01:46]} {[%emt 00:00:03]} Kc4 {[%clk 00:00:11]} {[%emt 00:00:02]} 91.
Ka5 {[%clk 00:01:50]} {[%emt 00:00:01]} Nc3 {[%clk 00:00:08]} {[%emt 00:00:08]}
92. Kb6 {[%clk 00:01:54]} {[%emt 00:00:01]} Bc5+ {[%clk 00:00:10]} {[%emt
00:00:03]} 93. Kc6 {[%clk 00:01:58]} {[%emt 00:00:01]} Na4 {[%clk 00:00:12]}
{[%emt 00:00:03]} 94. Kb7 {[%clk 00:02:00]} {[%emt 00:00:03]} Kb5 {[%clk
00:00:15]} {[%emt 00:00:02]} 95. Kc7 {[%clk 00:02:04]} {[%emt 00:00:01]} Ba3
{[%clk 00:00:17]} {[%emt 00:00:03]} 96. Kb7 {[%clk 00:02:08]} {[%emt 00:00:01]}
Bd6 {[%clk 00:00:14]} {[%emt 00:00:08]} 97. Ka7 {[%clk 00:02:11]} {[%emt
00:00:01]} Kc6 {[%clk 00:00:12]} {[%emt 00:00:07]} 98. Ka8 {[%clk 00:02:15]}
{[%emt 00:00:02]} Nc5 {[%clk 00:00:08]} {[%emt 00:00:08]} 99. Ka7 {[%clk
00:02:18]} {[%emt 00:00:02]} Bc7 {[%clk 00:00:11]} {[%emt 00:00:03]} 100. Ka8
{[%clk 00:02:22]} {[%emt 00:00:01]} Nd7 {[%clk 00:00:14]} {[%emt 00:00:02]} 101.
Ka7 {[%clk 00:02:26]} {[%emt 00:00:01]} Nb6 {[%clk 00:00:16]} {[%emt 00:00:03]}
102. Ka6 {[%clk 00:02:30]} {[%emt 00:00:01]} Bb8 {[%clk 00:00:17]} {[%emt
00:00:04]} 103. Ka5 {[%clk 00:02:34]} Nd5 {[%clk 00:00:17]} {[%emt 00:00:06]}
104. Ka4 {[%clk 00:02:38]} Kc5 {[%clk 00:00:13]} {[%emt 00:00:09]} 105. Kb3
{[%clk 00:02:42]} Nb4 {[%clk 00:00:15]} {[%emt 00:00:03]} 106. Kc3 {[%clk
00:02:46]} {[%emt 00:00:02]} Bf4 {[%clk 00:00:15]} {[%emt 00:00:04]} 107. Kb3
{[%clk 00:02:50]} {[%emt 00:00:01]} Be3 {[%clk 00:00:14]} {[%emt 00:00:07]} 108.
Kc3 {[%clk 00:02:53]} {[%emt 00:00:02]} Bf4 {[%clk 00:00:09]} {[%emt 00:00:09]}
109. Kb3 {[%clk 00:02:56]} {[%emt 00:00:03]} Bd2 {[%clk 00:00:08]} {[%emt
00:00:06]} 110. Ka4 {[%clk 00:02:57]} {[%emt 00:00:05]} Nc2 {[%clk 00:00:07]}
{[%emt 00:00:04]} 111. Kb3 {[%clk 00:03:01]} {[%emt 00:00:02]} Nd4+ {[%clk
00:00:11]} 112. Ka4 {[%clk 00:03:03]} {[%emt 00:00:03]} Kc4 {[%clk 00:00:14]}
{[%emt 00:00:02]} 113. Ka3 {[%clk 00:03:07]} {[%emt 00:00:02]} Kb5 {[%clk
00:00:18]} 114. Kb2 {[%clk 00:03:10]} {[%emt 00:00:01]} Kb4 {[%clk 00:00:21]}
{[%emt 00:00:02]} 115. Ka2 {[%clk 00:03:15]} {[%emt 00:00:01]} Bc1 {[%clk
00:00:08]} {[%emt 00:00:17]} 116. Kb1 {[%clk 00:03:18]} {[%emt 00:00:02]} Bd2
{[%clk 00:00:10]} {[%emt 00:00:02]} 117. Kb2 {[%clk 00:03:22]} {[%emt
00:00:01]} Kc4 {[%clk 00:00:12]} {[%emt 00:00:03]} 118. Ka3 {[%clk 00:03:26]}
{[%emt 00:00:01]} Kb5 {[%clk 00:00:16]} {[%emt 00:00:02]} 119. Kb2 {[%clk
00:03:30]} {[%emt 00:00:01]} Kb4 {[%clk 00:00:18]} {[%emt 00:00:03]} 120. Ka2
{[%clk 00:03:32]} {[%emt 00:00:03]} Nb3 {[%clk 00:00:10]} {[%emt 00:00:13]} 121.
Kb2 {[%clk 00:03:36]} Nd4 {[%clk 00:00:11]} {[%emt 00:00:04]} 122. Ka2 {[%clk
00:03:40]} {[%emt 00:00:01]} Ka4 {[%clk 00:00:08]} {[%emt 00:00:08]} 123. Kb2
{[%clk 00:03:44]} {[%emt 00:00:01]} Kb4 {[%clk 00:00:11]} {[%emt 00:00:02]} 124.
Ka2 {[%clk 00:03:48]} Nb3 {[%clk 00:00:12]} {[%emt 00:00:05]} 125. Kb2 {[%clk
00:03:52]} {[%emt 00:00:01]} Nd4 {[%clk 00:00:10]} {[%emt 00:00:06]} 126. Ka2
{[%clk 00:03:56]} {[%emt 00:00:01]} Kc3 {[%clk 00:00:06]} {[%emt 00:00:09]} 127.
Ka3 {[%clk 00:04:00]} {[%emt 00:00:02]} Kc4 {[%clk 00:00:09]} {[%emt 00:00:01]}
128. Ka4 {[%clk 00:04:03]} {[%emt 00:00:02]} Bc3 {[%clk 00:00:07]} {[%emt
00:00:07]} 129. Ka3 {[%clk 00:04:07]} {[%emt 00:00:01]} Nc2+ {[%clk 00:00:08]}
{[%emt 00:00:04]} 130. Ka4 {[%clk 00:04:11]} {[%emt 00:00:01]} Nd4 {[%clk
00:00:07]} {[%emt 00:00:06]} 131. Ka3 {[%clk 00:04:15]} {[%emt 00:00:01]} Bd2
{[%clk 00:00:09]} {[%emt 00:00:02]} 132. Ka4 {[%clk 00:04:19]} {[%emt
00:00:01]} Be1 {[%clk 00:00:12]} {[%emt 00:00:02]} 133. Ka3 {[%clk 00:04:23]}
{[%emt 00:00:01]} Kb5 {[%emt 00:00:05]} 134. Kb2 Bd2 {[%clk 00:00:17]} {[%emt
00:00:01]} 135. Ka3 {[%clk 00:04:31]} {[%emt 00:00:02]} Ka5 {[%clk 00:00:20]}
{[%emt 00:00:02]} 136. Kb2 {[%clk 00:04:35]} {[%emt 00:00:01]} Kb4 {[%clk
00:00:24]} 137. Ka2 {[%clk 00:04:39]} {[%emt 00:00:02]} Nb3 {[%clk 00:00:06]}
{[%emt 00:00:22]} 138. Kb2 {[%clk 00:04:43]} {[%emt 00:00:01]} Bc1+ {[%clk
00:00:06]} {[%emt 00:00:05]} 139. Kc2 {[%clk 00:04:47]} {[%emt 00:00:02]} Kc4
{[%clk 00:00:10]} 140. Kd1 {[%clk 00:04:50]} {[%emt 00:00:02]} Kd3 {[%clk
00:00:11]} {[%emt 00:00:04]} 141. Ke1 {[%clk 00:04:54]} {[%emt 00:00:01]} Be3
{[%clk 00:00:10]} {[%emt 00:00:06]} 142. Kf1 {[%clk 00:04:58]} {[%emt
00:00:01]} Nd4 {[%clk 00:00:12]} {[%emt 00:00:03]} 143. Kg2 {[%clk 00:05:03]}
{[%emt 00:00:01]} 1/2-1/2

[Event "The Kvibergspelen 2023"]
[Site "Kviberg Park Hotel & Conference, Krutvagen 2, Gothenburg, Sweden"]
[Date "2023.09.15"]
[Round "4.18"]
[White "Wiklund, Johan"]
[Black "Ljung, Harald"]
[Result "0-1"]
[TimeControl "15 minutes + 5 seconds per move from move one (Round 1 - 4) / 90 minutes + 30 seconds per move from move one (Round 5 - 8)"]
[WhiteFideId "1713817"]
[BlackFideId "1738178"]
[WhiteElo "1915"]
[BlackElo "2164"]

1. Nf3 {[%clk 00:15:09]} {[%emt 00:00:01]} Nf6 {[%clk 00:15:07]} {[%emt
00:00:04]} 2. c4 {[%clk 00:15:12]} {[%emt 00:00:01]} e6 {[%clk 00:15:11]}
{[%emt 00:00:02]} 3. Nc3 {[%clk 00:15:15]} {[%emt 00:00:01]} d5 {[%clk
00:15:14]} {[%emt 00:00:02]} 4. d4 {[%clk 00:15:19]} {[%emt 00:00:01]} Be7
{[%clk 00:15:17]} {[%emt 00:00:01]} 5. Bf4 {[%clk 00:15:22]} {[%emt 00:00:02]}
O-O {[%clk 00:15:17]} {[%emt 00:00:05]} 6. e3 {[%clk 00:15:26]} {[%emt
00:00:01]} c6 {[%clk 00:15:07]} {[%emt 00:00:16]} 7. c5 {[%clk 00:15:23]}
{[%emt 00:00:08]} b6 {[%clk 00:14:38]} {[%emt 00:00:34]} 8. b4 {[%clk
00:15:21]} {[%emt 00:00:07]} a5 {[%clk 00:14:19]} {[%emt 00:00:24]} 9. a3
{[%clk 00:15:24]} {[%emt 00:00:02]} Ba6 {[%clk 00:14:14]} {[%emt 00:00:10]} 10.
Bxa6 {[%clk 00:14:11]} {[%emt 00:01:18]} Nxa6 {[%clk 00:14:15]} {[%emt
00:00:04]} 11. Rb1 {[%clk 00:13:53]} {[%emt 00:00:22]} Nh5 {[%clk 00:14:08]}
{[%emt 00:00:12]} 12. Be5 {[%clk 00:13:37]} {[%emt 00:00:21]} f6 {[%clk
00:13:50]} {[%emt 00:00:23]} 13. Bg3 {[%clk 00:13:40]} {[%emt 00:00:03]} Nxg3
{[%clk 00:13:54]} {[%emt 00:00:01]} 14. hxg3 {[%clk 00:13:43]} {[%emt
00:00:01]} Qc7 {[%clk 00:11:31]} {[%emt 00:02:28]} 15. Na4 {[%clk 00:13:18]}
{[%emt 00:00:30]} bxc5 {[%clk 00:10:03]} {[%emt 00:01:34]} 16. bxc5 {[%clk
00:13:14]} {[%emt 00:00:08]} Rab8 {[%clk 00:09:32]} {[%emt 00:00:35]} 17. Rb6
{[%clk 00:11:42]} {[%emt 00:01:39]} Rxb6 {[%clk 00:08:27]} {[%emt 00:01:10]} 18.
Nxb6 {[%clk 00:11:44]} {[%emt 00:00:03]} Rb8 {[%clk 00:08:16]} {[%emt
00:00:15]} 19. Qd3 {[%clk 00:11:45]} {[%emt 00:00:04]} Bxc5 {[%clk 00:06:43]}
{[%emt 00:01:39]} 20. dxc5 Nxc5 {[%clk 00:06:46]} 21. Qxh7+ {[%clk 00:10:50]}
{[%emt 00:00:36]} Kf7 {[%clk 00:06:11]} {[%emt 00:00:40]} 22. Nh4 {[%clk
00:08:38]} {[%emt 00:02:17]} Rxb6 {[%clk 00:05:14]} {[%emt 00:01:03]} 23. Qg6+
{[%clk 00:08:04]} {[%emt 00:00:38]} Kf8 {[%clk 00:02:09]} {[%emt 00:03:11]} 24.
Nf3 {[%clk 00:07:03]} {[%emt 00:01:04]} Qf7 {[%clk 00:02:08]} {[%emt 00:00:07]}
25. Rh8+ {[%clk 00:06:27]} {[%emt 00:00:41]} Ke7 {[%clk 00:02:13]} 26. Qc2
{[%clk 00:06:31]} {[%emt 00:00:01]} Nd7 {[%clk 00:01:55]} {[%emt 00:00:22]} 27.
a4 {[%clk 00:04:11]} {[%emt 00:02:26]} Kd6 {[%clk 00:01:26]} {[%emt 00:00:33]}
28. Nd4 {[%clk 00:04:00]} {[%emt 00:00:16]} Ne5 {[%clk 00:00:29]} {[%emt
00:01:03]} 29. Nb3 {[%clk 00:03:16]} {[%emt 00:00:49]} Nc4 {[%clk 00:00:25]}
{[%emt 00:00:09]} 30. Nd4 {[%clk 00:00:26]} {[%emt 00:02:54]} Qb7 {[%clk
00:00:22]} {[%emt 00:00:09]} 31. Qg6 {[%clk 00:00:09]} {[%emt 00:00:22]} Rb1+
{[%clk 00:00:21]} {[%emt 00:00:06]} 32. Ke2 {[%clk 00:00:12]} {[%emt 00:00:01]}
Qb2+ {[%clk 00:00:24]} {[%emt 00:00:02]} 33. Kf3 {[%clk 00:00:16]} Ne5+ {[%clk
00:00:28]} {[%emt 00:00:01]} 0-1

[Event "The Kvibergspelen 2023"]
[Site "Kviberg Park Hotel & Conference, Krutvagen 2, Gothenburg, Sweden"]
[Date "2023.09.15"]
[Round "4.19"]
[White "Strom-Engdahl, Alexander"]
[Black "Kashwan, Hassan"]
[Result "1-0"]
[TimeControl "15 minutes + 5 seconds per move from move one (Round 1 - 4) / 90 minutes + 30 seconds per move from move one (Round 5 - 8)"]
[WhiteFideId "1741586"]
[BlackFideId "137122555"]
[WhiteElo "2164"]
[BlackElo "1901"]

1. e4 {[%clk 00:15:08]} {[%emt 00:00:02]} c5 {[%clk 00:12:26]} {[%emt
00:02:45]} 2. Nf3 {[%clk 00:15:09]} {[%emt 00:00:04]} d6 {[%clk 00:12:30]} 3.
Bb5+ {[%clk 00:15:03]} {[%emt 00:00:12]} Nc6 {[%clk 00:12:24]} {[%emt
00:00:11]} 4. O-O {[%clk 00:14:52]} {[%emt 00:00:16]} e6 {[%clk 00:12:15]}
{[%emt 00:00:14]} 5. Re1 {[%clk 00:14:37]} {[%emt 00:00:19]} Bd7 {[%clk
00:12:01]} {[%emt 00:00:20]} 6. d4 {[%clk 00:14:16]} {[%emt 00:00:26]} cxd4
{[%clk 00:12:00]} {[%emt 00:00:06]} 7. Nxd4 {[%clk 00:14:19]} {[%emt 00:00:01]}
Qb6 {[%clk 00:11:21]} {[%emt 00:00:44]} 8. Be3 {[%clk 00:13:55]} {[%emt
00:00:30]} Qc7 {[%clk 00:11:00]} {[%emt 00:00:25]} 9. Nc3 {[%clk 00:13:39]}
{[%emt 00:00:20]} Nf6 {[%clk 00:10:48]} {[%emt 00:00:18]} 10. f4 {[%clk
00:12:28]} {[%emt 00:01:16]} Be7 {[%clk 00:10:29]} {[%emt 00:00:24]} 11. Qf3
{[%clk 00:11:43]} {[%emt 00:00:50]} O-O {[%clk 00:10:16]} {[%emt 00:00:20]} 12.
Bd3 {[%clk 00:11:01]} {[%emt 00:00:45]} Nxd4 {[%clk 00:09:38]} {[%emt
00:00:44]} 13. Bxd4 {[%clk 00:11:01]} {[%emt 00:00:04]} e5 {[%clk 00:08:59]}
{[%emt 00:00:45]} 14. Be3 {[%clk 00:10:55]} {[%emt 00:00:11]} Bc6 {[%clk
00:08:41]} {[%emt 00:00:23]} 15. g4 {[%clk 00:10:13]} {[%emt 00:00:47]} Nd7
{[%clk 00:08:22]} {[%emt 00:00:24]} 16. f5 {[%clk 00:09:52]} {[%emt 00:00:25]}
Nc5 {[%clk 00:07:33]} {[%emt 00:00:54]} 17. g5 {[%clk 00:09:29]} {[%emt
00:00:28]} Rfe8 {[%clk 00:06:57]} {[%emt 00:00:42]} 18. Bxc5 {[%clk 00:07:29]}
{[%emt 00:02:05]} dxc5 {[%clk 00:06:52]} {[%emt 00:00:09]} 19. g6 {[%clk
00:07:31]} {[%emt 00:00:03]} fxg6 {[%clk 00:06:13]} {[%emt 00:00:44]} 20. fxg6
{[%clk 00:07:20]} {[%emt 00:00:16]} Rf8 {[%clk 00:05:50]} {[%emt 00:00:28]} 21.
Qh3 {[%clk 00:07:11]} {[%emt 00:00:14]} h6 {[%clk 00:05:51]} {[%emt 00:00:05]}
22. Rf1 {[%clk 00:06:47]} {[%emt 00:00:28]} Rf6 {[%clk 00:05:25]} {[%emt
00:00:31]} 23. Rxf6 {[%clk 00:06:29]} {[%emt 00:00:23]} Bxf6 {[%clk 00:05:21]}
{[%emt 00:00:09]} 24. Bc4+ {[%clk 00:06:23]} {[%emt 00:00:12]} Kh8 {[%clk
00:05:21]} {[%emt 00:00:05]} 25. Rd1 {[%clk 00:06:06]} {[%emt 00:00:21]} b5
{[%clk 00:04:30]} {[%emt 00:00:57]} 26. Bxb5 {[%clk 00:04:55]} {[%emt
00:01:16]} Bxb5 {[%clk 00:04:08]} {[%emt 00:00:26]} 27. Nxb5 {[%clk 00:04:54]}
{[%emt 00:00:06]} Qb6 {[%clk 00:03:59]} {[%emt 00:00:15]} 28. Nd6 {[%clk
00:04:46]} {[%emt 00:00:12]} Bg5 {[%clk 00:02:10]} {[%emt 00:01:54]} 29. Qe6
{[%clk 00:04:18]} {[%emt 00:00:36]} c4+ {[%clk 00:01:46]} {[%emt 00:00:27]} 30.
Kh1 {[%clk 00:04:20]} {[%emt 00:00:02]} Rf8 {[%clk 00:01:26]} {[%emt 00:00:26]}
31. Nf7+ {[%clk 00:04:17]} {[%emt 00:00:07]} Kg8 {[%clk 00:00:46]} {[%emt
00:00:45]} 32. Nxg5+ {[%clk 00:04:18]} {[%emt 00:00:04]} Qxe6 {[%clk 00:00:49]}
{[%emt 00:00:02]} 33. Nxe6 {[%clk 00:04:18]} {[%emt 00:00:05]} 1-0